fUSD/lending_fUSD_20250606
["ID","MTS","AMOUNT","RATE_DAILY","PERIOD"]
[364674656,1749195073507,-1252.03,0.00030493,7]
[364674657,1749195073516,-204.771268,0.00030493,7]
[364674658,1749195073526,-496.19,0.00030493,7]
[364674659,1749195073535,-151.0,0.00030493,7]
[364674660,1749195073544,-2497.24,0.00030493,7]
[364674661,1749195073554,-204.771268,0.00030493,7]
[364674662,1749195073563,-1074.2,0.00030493,7]
[364674663,1749195073573,-151.0,0.00030493,7]
[364674664,1749195073583,-480.0,0.00030493,7]
[364674665,1749195073593,-480.0,0.00030493,7]
[364674666,1749195073602,-151.0,0.00030493,7]
[364674667,1749195073612,-480.0,0.00030493,7]
[364674668,1749195073621,-169.0454,0.00030493,7]
[364674669,1749195073631,-313.3851527,0.00030493,7]
[364674670,1749195073640,-480.0,0.00030493,7]
[364674671,1749195073650,-204.771268,0.00030493,7]
[364674672,1749195073660,-2043.06,0.00030493,7]
[364674673,1749195073671,-204.771268,0.00030493,7]
[364674674,1749195073680,-153.578748,0.00030493,7]
[364674675,1749195073690,-480.0,0.00030493,7]
[364674676,1749195073700,-480.0,0.00030493,7]
[364674677,1749195073709,-480.0,0.00030493,7]
[364674678,1749195073719,-1410.64,0.00030493,7]
[364674679,1749195073728,-721.27,0.00030493,7]
[364674680,1749195073737,-480.0,0.00030493,7]
[364674681,1749195073746,-735.38,0.00030493,7]
[364674682,1749195073756,-1593.16,0.00030493,7]
[364674683,1749195073765,-1896.04,0.00030493,7]
[364674684,1749195073774,-473.16047261,0.00030493,7]
[364674685,1749195073784,-453.537922,0.00030493,7]
[364674686,1749195073794,-954.54,0.00030493,7]
[364674687,1749195073808,-453.537922,0.00030493,7]
[364674688,1749195073818,-5092.66,0.00030493,7]
[364674689,1749195073827,-480.0,0.00030493,7]
[364674690,1749195073837,-480.0,0.00030493,7]
[364674691,1749195073847,-476.29895915,0.00030493,7]
[364674692,1749195073857,-480.0,0.00030493,7]
[364674693,1749195073867,-453.537922,0.00030493,7]
[364674694,1749195073878,-453.537922,0.00030493,7]
[364674695,1749195073888,-732.66,0.00030493,7]
[364674696,1749195073898,-480.0,0.00030493,7]
[364674697,1749195073909,-480.0,0.00030493,7]
[364674698,1749195073919,-2684.8,0.00030493,7]
[364674699,1749195073928,-690.02,0.00030493,7]
[364674700,1749195073938,-749.27,0.00030493,7]
[364674701,1749195073950,-1631.58,0.00030493,7]
[364674702,1749195073959,-1191.278394,0.00030493,7]
[364674703,1749195073969,-1191.278394,0.00030493,7]
[364674704,1749195073979,-480.0,0.00030493,7]
[364674705,1749195073988,-621.64,0.00030493,7]
[364674706,1749195073997,-535.31,0.00030493,7]
[364674707,1749195074007,-1384.95,0.00030493,7]
[364674708,1749195074016,-1562.21,0.00030493,7]
[364674709,1749195074025,-480.0,0.00030493,7]
[364674710,1749195074035,-480.0,0.00030493,7]
[364674711,1749195074045,-18294.64,0.00030493,7]
[364674712,1749195074054,-894.81,0.00030493,7]
[364674713,1749195074064,-1191.278394,0.00030493,7]
[364674714,1749195074074,-1191.278394,0.00030493,7]
[364674715,1749195074084,-1115.23,0.00030493,7]
[364674716,1749195074093,-4575.79,0.00030493,7]
[364674717,1749195074102,-480.0,0.00030493,7]
[364674718,1749195074111,-364.34,0.00030493,7]
[364674719,1749195074121,-480.0,0.00030493,7]
[364674720,1749195074131,-854.68,0.00030493,7]
[364674721,1749195074141,-480.0,0.00030493,7]
[364674722,1749195074152,-800.0,0.00030493,11]
[364674723,1749195074162,-800.0,0.00030493,11]
[364674724,1749195074172,-695.12,0.00030493,7]
[364674725,1749195074181,-800.0,0.00030493,11]
[364674726,1749195074191,-800.0,0.00030493,11]
[364674727,1749195074201,-650.15,0.00030493,7]
[364674728,1749195074211,-800.0,0.00030493,11]
[364674729,1749195074221,-800.0,0.00030493,11]
[364674730,1749195074231,-800.0,0.00030493,11]
[364674731,1749195074241,-586.88,0.00030493,7]
[364674732,1749195074250,-800.0,0.00030493,11]
[364674733,1749195074260,-800.0,0.00030493,11]
[364674734,1749195074269,-6273.93,0.00030493,7]
[364674735,1749195074279,-820.40048884,0.00030493,11]
[364674736,1749195074289,-784.29,0.00030493,7]
[364674737,1749195074298,-480.0,0.00030493,7]
[364674738,1749195074308,-501.87,0.00030493,7]
[364674739,1749195074317,-156.547573,0.00030493,7]
[364674740,1749195074327,-648.911723,0.00030493,7]
[364674741,1749195074337,-480.0,0.00030493,7]
[364674742,1749195074347,-648.911723,0.00030493,7]
[364674743,1749195074357,-480.0,0.00030493,7]
[364674744,1749195074367,-1393.37,0.00030493,7]
[364674745,1749195074377,-480.0,0.00030493,7]
[364674746,1749195074387,-480.0,0.00030493,7]
[364674747,1749195074398,-1018.89,0.00030493,7]
[364674748,1749195074411,-2222.98,0.00030493,7]
[364674749,1749195074421,-701.3,0.00030493,7]
[364674750,1749195074431,-648.911723,0.00030493,7]
[364674751,1749195074441,-648.911723,0.00030493,7]
[364674752,1749195074451,-494.17906345,0.00030493,7]
[364674753,1749195074461,-480.0,0.00030493,7]
[364674754,1749195074471,-155.152848,0.00030493,7]
[364674755,1749195074482,-166.391649,0.00030493,7]
[364674756,1749195074494,-155.152848,0.00030493,7]
[364674757,1749195074505,-838.48,0.00030493,7]
[364674758,1749195074515,-376.88713618,0.00030493,7]
[364674759,1749195074525,-166.391649,0.00030493,7]
[364674760,1749195074535,-511.53093234,0.00030493,7]
[364674761,1749195074546,-2372.89,0.00030493,7]
[364674762,1749195074556,-894.02,0.00030493,7]
[364674763,1749195074567,-529.15512062,0.00030493,7]
[364674764,1749195074577,-481.7728298,0.00030493,7]
[364674765,1749195074587,-7451.07,0.00030493,7]
[364674766,1749195074597,-2119.73,0.00030493,7]
[364674767,1749195074607,-155.152848,0.00030493,7]
[364674768,1749195074618,-166.391649,0.00030493,7]
[364674769,1749195074628,-480.0,0.00030493,7]
[364674770,1749195074639,-1031.14,0.00030493,7]
[364674771,1749195074651,-155.152848,0.00030493,7]
[364674772,1749195074660,-480.0,0.00030493,7]
[364674773,1749195074671,-166.391649,0.00030493,7]
[364674774,1749195074683,-480.0,0.00030493,7]
[364674775,1749195074693,-480.0,0.00030493,7]
[364674776,1749195074703,-953.26,0.00030493,7]
[364674777,1749195074713,-151.0,0.00030493,7]
[364674778,1749195074723,-151.0,0.00030493,7]
[364674779,1749195074733,-545.98,0.00030493,7]
[364674780,1749195074742,-981.45,0.00030493,7]
[364674781,1749195074751,-665.71,0.00030493,7]
[364674782,1749195074761,-1003.28,0.00030493,7]
[364674783,1749195074770,-502.03,0.00030493,7]
[364674784,1749195074780,-599.66,0.00030493,7]
[364674785,1749195074790,-3222.48,0.00030493,7]
[364674786,1749195074801,-642.87,0.00030493,2]
[364674787,1749195074811,-480.0,0.00030493,7]
[364674788,1749195074821,-895.35,0.00030493,7]
[364674789,1749195074831,-150.0,0.00030493,2]
[364674790,1749195074840,-13954.29,0.00030493,7]
[364674791,1749195074850,-493.59920009,0.00030493,7]
[364674792,1749195074859,-821.63,0.00030493,7]
[364674793,1749195074869,-1239.07,0.00030493,7]
[364674794,1749195074879,-2507.72,0.00030493,7]
[364674795,1749195074888,-21187.12,0.00030493,7]
[364674796,1749195074898,-1029.37,0.00030493,7]
[364674797,1749195074910,-1188.22,0.00030493,7]
[364674798,1749195074920,-480.0,0.00030493,7]
[364674799,1749195074930,-1023.07,0.00030493,2]
[364674800,1749195074941,-1061.28,0.00030493,7]
[364674801,1749195074951,-151.0,0.00030493,7]
[364674802,1749195074961,-151.0,0.00030493,7]
[364674803,1749195074972,-4145.62,0.00030493,7]
[364674804,1749195074982,-480.0,0.00030493,7]
[364674805,1749195074992,-585.37,0.00030493,7]
[364674806,1749195075002,-480.0,0.00030493,7]
[364674807,1749195075012,-480.0,0.00030493,7]
[364674808,1749195075023,-225.386893,0.00030493,7]
[364674809,1749195075033,-489.81319888,0.00030493,7]
[364674810,1749195075043,-480.0,0.00030493,7]
[364674811,1749195075053,-225.386893,0.00030493,7]
[364674812,1749195075064,-867.72,0.00030493,7]
[364674813,1749195075074,-81999.01,0.00030493,7]
[364674814,1749195075084,-823.56,0.00030493,7]
[364674815,1749195075095,-818.4,0.00030493,7]
[364674816,1749195075105,-480.0,0.00030493,7]
[364674817,1749195075116,-2369.76,0.00030493,7]
[364674818,1749195075126,-883.58,0.00030493,7]
[364674819,1749195075136,-480.0,0.00030493,7]
[364674820,1749195075146,-1414.72431,0.00030493,7]
[364674821,1749195075158,-480.0,0.00030493,7]
[364674822,1749195075169,-1414.72431,0.00030493,7]
[364674823,1749195075179,-1357.61,0.00030493,7]
[364674824,1749195075189,-1145.19,0.00030493,7]
[364674825,1749195075199,-225.386893,0.00030493,7]
[364674826,1749195075209,-480.0,0.00030493,7]
[364674827,1749195075219,-225.386893,0.00030493,7]
[364674828,1749195075229,-1168.31,0.00030493,7]
[364674829,1749195075239,-480.0,0.00030493,7]
[364674830,1749195075249,-1414.72431,0.00030493,7]
[364674831,1749195075259,-1414.72431,0.00030493,7]
[364674832,1749195075269,-1706.77,0.00030493,7]
[364674833,1749195075279,-365.51950285,0.00030493,7]
[364674834,1749195075289,-17090.9843967,0.00030494,2]
[364674835,1749195075299,-4787.5850095,0.00030494,2]
[364674836,1749195075309,-5361.1319336,0.00030494,2]
[364674837,1749195075319,-1439.7628176,0.00030494,2]
[364674838,1749195075329,-500.0,0.00030494,7]
[364674839,1749195075339,-159.033553,0.00030494,7]
[364674840,1749195075349,-3513.5408998,0.00030494,2]
[364674841,1749195075360,-907.782064,0.00030494,7]
[364674842,1749195075370,-907.782064,0.00030494,7]
[364674843,1749195075380,-500.0,0.00030495,2]
[364674844,1749195075390,-500.0,0.00030495,2]
[364674845,1749195075402,-1552.0,0.00030495,2]
[364674846,1749195075412,-150.0,0.00030495,2]
[364674847,1749195075422,-500.0,0.00030495,2]
[364674848,1749195075432,-1387.0,0.00030495,2]
[364674849,1749195075442,-527.0,0.00030495,2]
[364674850,1749195075452,-500.0,0.00030495,2]
[364674851,1749195075462,-150.0,0.00030495,2]
[364674852,1749195075472,-419.0,0.00030495,2]
[364674853,1749195075482,-500.0,0.00030495,2]
[364674854,1749195075491,-154.34173649,0.00030495,2]
[364674855,1749195075502,-500.0,0.00030495,2]
[364674856,1749195075512,-223.87899845,0.00030495,7]
[364674857,1749195075522,-151.0,0.00030499,7]
[364674858,1749195075532,-151.0,0.00030499,7]
[364674859,1749195075542,-151.0,0.00030499,7]
[364674860,1749195075551,-151.0,0.00030499,7]
[364674861,1749195075561,-34320.8311342,0.000305,2]
[364674862,1749195075570,-1405.736517,0.000305,2]
[364674863,1749195075580,-2186.5174381,0.000305,2]
[364674864,1749195075590,-201388.531338,0.000305,2]
[364674865,1749195075600,-9173.0,0.000305,2]
[364674866,1749195075610,-1000.0,0.00030521,5]
[364674867,1749195075619,-812.2,0.00030521,7]
[364674868,1749195075629,-500.0,0.00030522,2]
[364674869,1749195075639,-500.0,0.00030522,2]
[364674870,1749195075648,-1552.0,0.00030522,2]
[364674871,1749195075659,-250.0,0.00030522,2]
[364674872,1749195075669,-500.0,0.00030522,2]
[364674873,1749195075679,-1387.0,0.00030522,2]
[364674874,1749195075689,-527.0,0.00030522,2]
[364674875,1749195075699,-500.0,0.00030522,2]
[364674876,1749195075709,-186.07300312,0.00030522,2]
[364674877,1749195075719,-419.0,0.00030522,2]
[364674878,1749195075728,-500.0,0.00030522,2]
[364674879,1749195075739,-500.0,0.00030522,2]
[364674880,1749195075748,-1191.278394,0.00030549,7]
[364674881,1749195075758,-1191.278399,0.00030549,7]
[364674882,1749195075768,-166.391649,0.00030549,7]
[364674883,1749195075778,-166.391645,0.00030549,7]
[364674884,1749195075787,-151.0,0.00030549,7]
[364674885,1749195075797,-151.0,0.00030549,7]
[364674886,1749195075810,-500.0,0.00030549,2]
[364674887,1749195075819,-500.0,0.00030549,2]
[364674888,1749195075829,-1552.0,0.00030549,2]
[364674889,1749195075839,-500.0,0.00030549,2]
[364674890,1749195075850,-1387.0,0.00030549,2]
[364674891,1749195075860,-527.0,0.00030549,2]
[364674892,1749195075869,-500.0,0.00030549,2]
[364674893,1749195075882,-419.0,0.00030549,2]
[364674894,1749195075891,-500.0,0.00030549,2]
[364674895,1749195075901,-500.0,0.00030549,2]
[364674896,1749195075911,-662.05516417,0.00030562,2]
[364674897,1749195075921,-506.15890565,0.0003057,2]
[364674898,1749195075931,-763.56,0.00030576,7]
[364674899,1749195075941,-500.0,0.00030577,2]
[364674900,1749195075951,-500.0,0.00030577,2]
[364674901,1749195075961,-1552.0,0.00030577,2]
[364674902,1749195075971,-298.01995124,0.00030577,2]
[364674903,1749195075980,-1387.0,0.00030577,2]
[364674904,1749195075991,-527.0,0.00030577,2]
[364674905,1749195076000,-500.0,0.00030577,2]
[364674906,1749195076010,-419.0,0.00030577,2]
[364674907,1749195076020,-500.0,0.00030577,2]
[364674908,1749195076030,-500.0,0.00030577,2]
[364674909,1749195076040,-2000.0,0.00030599,2]
[364674910,1749195076050,-1001.4002,0.00030599,2]
[364674911,1749195076060,-5004.5717,0.000306,30]
[364674912,1749195076069,-319.28703344,0.000306,7]
[364674913,1749195076079,-150.0,0.000306,7]
[364674914,1749195076089,-249.59327405,0.000306,7]
[364674915,1749195076099,-150.0,0.000306,7]
[364674916,1749195076109,-150.0,0.000306,7]
[364674917,1749195076118,-150.0,0.000306,7]
[364674918,1749195076128,-150.0,0.000306,7]
[364674919,1749195076138,-150.0,0.000306,7]
[364674920,1749195076148,-150.0,0.000306,7]
[364674921,1749195076160,-150.0,0.000306,7]
[364674922,1749195076169,-150.0,0.000306,7]
[364674923,1749195076179,-186.92298052,0.00030604,2]
[364674924,1749195076188,-500.0,0.00030604,2]
[364674925,1749195076198,-1552.0,0.00030604,2]
[364674926,1749195076207,-1387.0,0.00030604,2]
[364674927,1749195076218,-527.0,0.00030604,2]
[364674928,1749195076228,-419.0,0.00030604,2]
[364674929,1749195076237,-500.0,0.00030604,2]
[364674930,1749195076246,-150.0,0.0003061,2]
[364674931,1749195076256,-500.0,0.00030632,2]
[364674932,1749195076266,-1552.0,0.00030632,2]
[364674933,1749195076276,-1387.0,0.00030632,2]
[364674934,1749195076286,-527.0,0.00030632,2]
[364674935,1749195076295,-419.0,0.00030632,2]
[364674936,1749195076305,-238.41801222,0.00030632,2]
[364674937,1749195076315,-319.28703344,0.00030634,7]
[364674938,1749195076325,-249.59327405,0.00030634,7]
[364674939,1749195076334,-4767.2596182,0.00030636,2]
[364674940,1749195076344,-1280.2749914,0.00030636,2]
[364674941,1749195076354,-3129.2058825,0.00030636,2]
[364674942,1749195076364,-1953.7767297,0.00030636,2]
[364674943,1749195076374,-179952.0183589,0.00030636,2]
[364674944,1749195076384,-150.0,0.00030639,7]
[364674945,1749195076394,-150.0,0.00030641,7]
[364674946,1749195076405,-151.0,0.00030656,7]
[364674947,1749195076415,-514.22,0.00030656,7]
[364674948,1749195076424,-514.22,0.00030656,7]
[364674949,1749195076434,-514.22,0.00030656,7]
[364674950,1749195076444,-630.13782369,0.00030656,7]
[364674951,1749195076454,-763.56,0.00030656,7]
[364674952,1749195076465,-763.56,0.00030656,7]
[364674953,1749195076475,-763.56,0.00030656,7]
[364674954,1749195076485,-763.56,0.00030656,7]
[364674955,1749195076495,-763.58112612,0.00030656,7]
[364674956,1749195076506,-204.771268,0.00030656,7]
[364674957,1749195076723,-204.771268,0.00030656,7]
[364674958,1749195076732,-812.2,0.00030656,7]
[364674959,1749195076742,-812.2,0.00030656,7]
[364674960,1749195076751,-812.2,0.00030656,7]
[364674961,1749195076761,-812.2,0.00030656,7]
[364674962,1749195076771,-812.2,0.00030656,7]
[364674963,1749195076781,-648.911723,0.00030656,7]
[364674964,1749195076790,-812.28176622,0.00030656,7]
[364674965,1749195076801,-648.911723,0.00030656,7]
[364674966,1749195076812,-155.152848,0.00030656,7]
[364674967,1749195076821,-155.152848,0.00030656,7]
[364674968,1749195076831,-1414.72431,0.00030656,7]
[364674969,1749195076840,-1414.72431,0.00030656,7]
[364674970,1749195076850,-50000.0,0.00030657,19]
[364674971,1749195076859,-306.51618416,0.00030657,2]
[364674972,1749195076868,-151.0,0.00030657,7]
[364674973,1749195076879,-151.0,0.00030657,7]
[364674974,1749195076888,-151.0,0.00030657,7]
[364674975,1749195076898,-151.0,0.00030657,7]
[364674976,1749195076909,-156.300374,0.00030657,7]
[364674977,1749195076918,-151.0,0.00030657,7]
[364674978,1749195076927,-151.0,0.00030657,7]
[364674979,1749195076937,-172.08308,0.00030657,7]
[364674980,1749195076946,-521.92494463,0.00030657,7]
[364674981,1749195076955,-480.0,0.00030657,7]
[364674982,1749195076965,-480.0,0.00030657,7]
[364674983,1749195076974,-480.0,0.00030657,7]
[364674984,1749195076984,-399.06895492,0.00030657,7]
[364674985,1749195076994,-151.0,0.00030657,7]
[364674986,1749195077004,-151.0,0.00030657,7]
[364674987,1749195077014,-480.0,0.00030657,7]
[364674988,1749195077025,-480.0,0.00030657,7]
[364674989,1749195077035,-495.83858988,0.00030657,7]
[364674990,1749195077045,-480.0,0.00030657,7]
[364674991,1749195077055,-639.09,0.00030657,7]
[364674992,1749195077066,-480.0,0.00030657,7]
[364674993,1749195077076,-495.17357435,0.00030657,7]
[364674994,1749195077086,-480.0,0.00030657,7]
[364674995,1749195077096,-151.0,0.00030657,7]
[364674996,1749195077105,-151.0,0.00030657,7]
[364674997,1749195077115,-480.0,0.00030657,7]
[364674998,1749195077125,-480.0,0.00030657,7]
[364674999,1749195077135,-480.0,0.00030657,7]
[364675000,1749195077145,-480.0,0.00030657,7]
[364675001,1749195077157,-480.0,0.00030657,7]
[364675002,1749195077167,-480.0,0.00030657,7]
[364675003,1749195077177,-421.134473,0.00030657,7]
[364675004,1749195077186,-421.134473,0.00030657,7]
[364675005,1749195077196,-421.134473,0.00030657,7]
[364675006,1749195077205,-421.134473,0.00030657,7]
[364675007,1749195077215,-480.0,0.00030657,7]
[364675008,1749195077224,-480.0,0.00030657,7]
[364675009,1749195077233,-535.07,0.00030657,7]
[364675010,1749195077243,-480.0,0.00030657,7]
[364675011,1749195077252,-480.0,0.00030657,7]
[364675012,1749195077261,-335.222175,0.00030657,7]
[364675013,1749195077271,-335.222175,0.00030657,7]
[364675014,1749195077280,-335.222175,0.00030657,7]
[364675015,1749195077289,-335.222175,0.00030657,7]
[364675016,1749195077299,-480.0,0.00030657,7]
[364675017,1749195077308,-480.0,0.00030657,7]
[364675018,1749195077317,-248.51935007,0.00030657,7]
[364675019,1749195077327,-480.0,0.00030657,7]
[364675020,1749195077336,-480.0,0.00030657,7]
[364675021,1749195077346,-607.32,0.00030657,7]
[364675022,1749195077355,-191.964947,0.00030657,7]
[364675023,1749195077365,-191.964947,0.00030657,7]
[364675024,1749195077374,-191.964947,0.00030657,7]
[364675025,1749195077384,-191.964947,0.00030657,7]
[364675026,1749195077393,-480.0,0.00030657,7]
[364675027,1749195077403,-480.0,0.00030657,7]
[364675028,1749195077413,-253.567617,0.00030657,7]
[364675029,1749195077423,-480.0,0.00030657,7]
[364675030,1749195077432,-253.567617,0.00030657,7]
[364675031,1749195077442,-253.567617,0.00030657,7]
[364675032,1749195077452,-253.567617,0.00030657,7]
[364675033,1749195077461,-480.0,0.00030657,7]
[364675034,1749195077471,-480.0,0.00030657,7]
[364675035,1749195077480,-480.0,0.00030657,7]
[364675036,1749195077489,-480.0,0.00030657,7]
[364675037,1749195077499,-151.0,0.00030657,7]
[364675038,1749195077509,-151.0,0.00030657,7]
[364675039,1749195077518,-151.0,0.00030657,7]
[364675040,1749195077528,-151.0,0.00030657,7]
[364675041,1749195077537,-480.0,0.00030657,7]
[364675042,1749195077548,-743.81,0.00030657,7]
[364675043,1749195077557,-211.66968226,0.00030657,7]
[364675044,1749195077567,-480.0,0.00030657,7]
[364675045,1749195077577,-480.0,0.00030657,7]
[364675046,1749195077586,-480.0,0.00030657,7]
[364675047,1749195077597,-151.0,0.00030657,7]
[364675048,1749195077607,-151.0,0.00030657,7]
[364675049,1749195077616,-524.59,0.00030657,7]
[364675050,1749195077625,-212.018929,0.00030657,7]
[364675051,1749195077635,-212.018929,0.00030657,7]
[364675052,1749195077645,-212.018929,0.00030657,7]
[364675053,1749195077656,-212.018929,0.00030657,7]
[364675054,1749195077666,-498.96670728,0.00030657,7]
[364675055,1749195077676,-480.0,0.00030657,7]
[364675056,1749195077685,-480.0,0.00030657,7]
[364675057,1749195077694,-480.0,0.00030657,7]
[364675058,1749195077704,-1194.15,0.00030657,7]
[364675059,1749195077713,-480.0,0.00030657,7]
[364675060,1749195077722,-480.0,0.00030657,7]
[364675061,1749195077731,-739.76,0.00030657,7]
[364675062,1749195077740,-151.0,0.00030657,7]
[364675063,1749195077750,-151.0,0.00030657,7]
[364675064,1749195077759,-480.0,0.00030657,7]
[364675065,1749195077769,-151.0,0.00030657,7]
[364675066,1749195077778,-151.0,0.00030657,7]
[364675067,1749195077787,-480.0,0.00030657,7]
[364675068,1749195077797,-191.4743,0.00030657,7]
[364675069,1749195077810,-480.0,0.00030657,7]
[364675070,1749195077819,-548.8,0.00030657,7]
[364675071,1749195077828,-480.0,0.00030657,7]
[364675072,1749195077837,-480.0,0.00030657,7]
[364675073,1749195077847,-596.13,0.00030657,7]
[364675074,1749195077856,-728.32,0.00030657,7]
[364675075,1749195077865,-623.73286546,0.00030657,7]
[364675076,1749195077874,-480.0,0.00030657,7]
[364675077,1749195077884,-480.0,0.00030657,7]
[364675078,1749195077894,-480.0,0.00030657,7]
[364675079,1749195077903,-151.0,0.00030657,7]
[364675080,1749195077912,-543.43,0.00030657,7]
[364675081,1749195077922,-151.0,0.00030657,7]
[364675082,1749195077931,-502.62,0.00030657,7]
[364675083,1749195077940,-480.0,0.00030657,7]
[364675084,1749195077950,-480.0,0.00030657,7]
[364675085,1749195077959,-480.0,0.00030657,7]
[364675086,1749195077968,-480.0,0.00030657,7]
[364675087,1749195077978,-480.0,0.00030657,7]
[364675088,1749195077987,-480.0,0.00030657,7]
[364675089,1749195077996,-480.0,0.00030657,7]
[364675090,1749195078005,-486.43,0.00030657,7]
[364675091,1749195078015,-480.0,0.00030657,7]
[364675092,1749195078025,-731.51,0.00030657,30]
[364675093,1749195078034,-480.0,0.00030657,7]
[364675094,1749195078044,-872.44,0.00030657,7]
[364675095,1749195078053,-501.9987913,0.00030657,7]
[364675096,1749195078062,-480.0,0.00030657,7]
[364675097,1749195078072,-480.0,0.00030657,7]
[364675098,1749195078082,-480.0,0.00030657,7]
[364675099,1749195078091,-480.0,0.00030657,7]
[364675100,1749195078101,-480.0,0.00030657,7]
[364675101,1749195078110,-844.68,0.00030657,7]
[364675102,1749195078120,-480.0,0.00030657,7]
[364675103,1749195078130,-151.0,0.00030657,7]
[364675104,1749195078139,-151.0,0.00030657,7]
[364675105,1749195078148,-936.662706,0.00030657,7]
[364675106,1749195078160,-936.662706,0.00030657,7]
[364675107,1749195078170,-480.0,0.00030657,7]
[364675108,1749195078180,-480.0,0.00030657,7]
[364675109,1749195078189,-936.662706,0.00030657,7]
[364675110,1749195078200,-480.0,0.00030657,7]
[364675111,1749195078211,-936.662706,0.00030657,7]
[364675112,1749195078222,-480.0,0.00030657,7]
[364675113,1749195078232,-480.0,0.00030657,7]
[364675114,1749195078242,-480.0,0.00030657,7]
[364675115,1749195078252,-549.18638581,0.00030657,7]
[364675116,1749195078262,-480.0,0.00030657,7]
[364675117,1749195078272,-480.0,0.00030657,7]
[364675118,1749195078281,-151.0,0.00030657,7]
[364675119,1749195078291,-480.0,0.00030657,7]
[364675120,1749195078300,-151.0,0.00030657,7]
[364675121,1749195078311,-480.0,0.00030657,7]
[364675122,1749195078320,-480.0,0.00030657,7]
[364675123,1749195078331,-480.0,0.00030657,7]
[364675124,1749195078340,-480.0,0.00030657,7]
[364675125,1749195078349,-480.0,0.00030657,7]
[364675126,1749195078359,-889.06,0.00030657,7]
[364675127,1749195078369,-480.0,0.00030657,7]
[364675128,1749195078379,-480.0,0.00030657,7]
[364675129,1749195078389,-480.0,0.00030657,7]
[364675130,1749195078399,-480.0,0.00030657,7]
[364675131,1749195078411,-480.0,0.00030657,7]
[364675132,1749195078421,-645.26,0.00030657,7]
[364675133,1749195078432,-480.0,0.00030657,7]
[364675134,1749195078442,-480.0,0.00030657,7]
[364675135,1749195078452,-1247.94,0.00030657,7]
[364675136,1749195078462,-760.34,0.00030657,7]
[364675137,1749195078473,-480.0,0.00030657,7]
[364675138,1749195078483,-480.0,0.00030657,7]
[364675139,1749195078493,-767.62,0.00030657,7]
[364675140,1749195078503,-1400.52,0.00030657,7]
[364675141,1749195078514,-495.4,0.00030657,7]
[364675142,1749195078523,-480.0,0.00030657,7]
[364675143,1749195078533,-1416.2,0.00030657,7]
[364675144,1749195078542,-480.0,0.00030657,7]
[364675145,1749195078553,-2160.01623,0.00030657,7]
[364675146,1749195078562,-772.23,0.00030657,7]
[364675147,1749195078572,-1026.87,0.00030657,7]
[364675148,1749195078582,-1405.79,0.00030657,7]
[364675149,1749195078592,-704.39,0.00030657,7]
[364675150,1749195078602,-480.0,0.00030657,7]
[364675151,1749195078612,-480.0,0.00030657,7]
[364675152,1749195078623,-959.69,0.00030657,7]
[364675153,1749195078633,-534.57,0.00030657,7]
[364675154,1749195078643,-480.0,0.00030657,7]
[364675155,1749195078653,-191.36473,0.00030657,7]